[Event "POL-chT 2 Liga 2019"]
[Site "Poronin"]
[Date "2019.09.09"]
[Round "3.29"]
[White "Polok, Rafal"]
[Black "Szolc, Grzegorz"]
[Result "1/2-1/2"]
[ECO "B23"]
[WhiteElo "2053"]
[BlackElo "2038"]
[Annotator "NA RC"]
[PlyCount "65"]
[EventDate "2019.09.07"]
[EventType "team-tourn"]
[EventCountry "POL"]
[SourceTitle "playchess.com"]
[Source "ChessBase"]
[SourceQuality "1"]
[TimeControl "40/5400+30:1800+30"]

1. e4 {[%emt 0:00:00]} c5 {[%emt 0:00:00]} 2. Nc3 {[%emt 0:00:00]} e6 {[%emt 0:00:00]} 3. g3 {[%emt 0:00:00]} Nc6 {[%emt 0:00:19]} 4. Bg2 {[%emt 0:00:00]} g6 {[%emt 0:00:16]} 5. d3 {[%emt 0:00:04]} Bg7 {[%emt 0:00:07]} 6. Be3 {[%emt 0:00:09]} d6 {[%emt 0:00:21]} 7. Qd2 {[%emt 0:00:05]} Rb8 {[%emt 0:02:15]} 8. Nf3 {[%emt 0:01:13]} Qb6 {[%emt 0:29:32]} 9. Nd1 {[%emt 0:22:40]} Nd4 {[%emt 0:09:41]} 10. c3 {[%emt 0:03:17]} Nxf3+ {[%emt 0:01:15]} 11. Bxf3 {[%emt 0:00:05]} Qc7 {[%emt 0:13:35]} 12. d4 {[%emt 0:07:45]} b6 {[%emt 0:04:31]} 13. O-O {[%emt 0:05:28]} h5 {[%emt 0:02:40]} 14. h4 {[%emt 0:01:28]} Ne7 {[%emt 0:00:24]} 15. Bg2 {[%emt 0:06:46]} Bb7 {[%emt 0:04:55]} 16. f4 {[%emt 0:14:42]} f5 {[%emt 0:02:16]} 17. e5 {[%emt 0:03:38]} Bxg2 {[%emt 0:09:37]} 18. Kxg2 {[%emt 0:05:13]} cxd4 {[%emt 0:02:43]} 19. cxd4 {[%emt 0:00:13]} Qb7+ {[%emt 0:01:51]} 20. Kh2 {[%emt 0:02:14]} d5 {[%emt 0:00:23]} 21. a4 {[%emt 0:05:25]} a6 {[%emt 0:01:09]} 22. b3 {[%emt 0:05:13]} Kf7 {[%emt 0:00:20]} 23. Nb2 {[%emt 0:01:58]} Rhc8 {[%emt 0:00:40]} 24. Nd3 {[%emt 0:01:19]} Nc6 {[%emt 0:01:16]} 25. Qb2 {[%emt 0:00:58]} Bf8 {[%emt 0:00:42]} 26. Bd2 {[%emt 0:00:59]} Rc7 {[%emt 0:00:57]} 27. Rfc1 {[%emt 0:03:42]} Rbc8 {[%emt 0:00:49]} 28. Rc2 {[%emt 0:01:16]} Nb8 {[%emt 0:01:23]} 29. Rxc7+ {[%emt 0:01:53]} Rxc7 {[%emt 0:00:05]} 30. Bb4 {[%emt 0:00:17]} Bxb4 {[%emt 0:02:08]} 31. Nxb4 {[%emt 0:00:04]} a5 {[%emt 0:00:20]} 32. Nd3 {[%emt 0:00:39]} Qc8 {[%emt 0:00:30]} 33. Rc1 1/2-1/2

[Event "POL-chT 2 Liga 2019"]
[Site "Poronin"]
[Date "2019.09.09"]
[Round "3.30"]
[White "Szydlowska-Duda, Marta"]
[Black "Trybowska, Barbara"]
[Result "1/2-1/2"]
[ECO "D02"]
[WhiteElo "1986"]
[BlackElo "1689"]
[Annotator "NA RC"]
[PlyCount "38"]
[EventDate "2019.09.07"]
[EventType "team-tourn"]
[EventCountry "POL"]
[SourceTitle "playchess.com"]
[Source "ChessBase"]
[SourceQuality "1"]
[TimeControl "40/5400+30:1800+30"]

1. d4 {[%emt 0:00:00]} d5 {[%emt 0:00:00]} 2. Nf3 {[%emt 0:00:00]} Nf6 {[%emt 0:00:00]} 3. Bf4 {[%emt 0:00:00]} c5 {[%emt 0:00:00]} 4. e3 {[%emt 0:00:44]} Nc6 {[%emt 0:00:31]} 5. c3 {[%emt 0:02:05]} e6 {[%emt 0:00:48]} 6. Bd3 {[%emt 0:01:22]} Nh5 {[%emt 0:03:26]} 7. Bg3 {[%emt 0:01:02]} Nxg3 {[%emt 0:00:21]} 8. hxg3 {[%emt 0:00:06]} h6 {[%emt 0:00:55]} 9. Nbd2 {[%emt 0:00:44]} Qb6 {[%emt 0:05:04]} 10. Rb1 {[%emt 0:01:42]} cxd4 {[%emt 0:07:24]} 11. exd4 {[%emt 0:00:21]} Bd6 {[%emt 0:04:01]} 12. Qe2 {[%emt 0:07:50]} Bd7 {[%emt 0:07:51]} 13. b4 {[%emt 0:34:29]} Qc7 {[%emt 0:08:51]} 14. Nb3 {[%emt 0:06:33]} b6 {[%emt 0:09:31]} 15. Kf1 {[%emt 0:12:47]} Kf8 {[%emt 0:10:41]} 16. Re1 {[%emt 0:07:37]} Re8 {[%emt 0:07:26]} 17. Ne5 {[%emt 0:02:36]} Nxe5 {[%emt 0:08:52]} 18. dxe5 {[%emt 0:00:06]} Be7 {[%emt 0:00:08]} 19. Rc1 {[%emt 0:09:51]} Ba4 {[%emt 0:02:25]} 1/2-1/2

[Event "POL-chT 2 Liga 2019"]
[Site "Poronin"]
[Date "2019.09.09"]
[Round "3.36"]
[White "Czerwinska, Milena"]
[Black "Huchwajda, Katarzyna"]
[Result "1/2-1/2"]
[ECO "B33"]
[WhiteElo "2006"]
[BlackElo "1771"]
[Annotator "NA RC"]
[PlyCount "83"]
[EventDate "2019.09.07"]
[EventType "team-tourn"]
[EventCountry "POL"]
[SourceTitle "playchess.com"]
[Source "ChessBase"]
[SourceQuality "1"]
[TimeControl "40/5400+30:1800+30"]

1. e4 {[%emt 0:00:00]} c5 {[%emt 0:01:10]} 2. Nf3 {[%emt 0:00:00]} e6 {[%emt 0:00:06]} 3. d4 {[%emt 0:00:00]} cxd4 {[%emt 0:00:06]} 4. Nxd4 {[%emt 0:00:00]} Nc6 {[%emt 0:00:14]} 5. Nc3 {[%emt 0:00:15]} Nf6 {[%emt 0:00:09]} 6. Ndb5 {[%emt 0:01:26]} d6 {[%emt 0:00:29]} 7. Bf4 {[%emt 0:00:37]} e5 {[%emt 0:00:37]} 8. Bg5 {[%emt 0:00:10]} a6 {[%emt 0:00:32]} 9. Na3 {[%emt 0:00:16]} b5 {[%emt 0:00:34]} 10. Nd5 {[%emt 0:00:20]} Be7 {[%emt 0:02:16]} 11. Bxf6 {[%emt 0:01:16]} Bxf6 {[%emt 0:01:05]} 12. c4 {[%emt 0:09:30]} b4 {[%emt 0:05:49]} 13. Nc2 {[%emt 0:04:58]} a5 {[%emt 0:05:33]} 14. Be2 {[%emt 0:05:45]} O-O {[%emt 0:01:28]} 15. O-O {[%emt 0:13:57]} Bg5 {[%emt 0:01:52]} 16. Bg4 {[%emt 0:08:02]} Be6 {[%emt 0:12:20]} 17. Nde3 {[%emt 0:12:22]} Bh6 {[%emt 0:10:45]} 18. Qd3 {[%emt 0:10:48]} Qe7 {[%emt 0:07:41]} 19. Rad1 {[%emt 0:06:44]} Rad8 {[%emt 0:02:21]} 20. g3 {[%emt 0:00:55]} g6 {[%emt 0:06:42]} 21. Nd5 {[%emt 0:02:37]} Qa7 {[%emt 0:09:07]} 22. Nf6+ {[%emt 0:05:57]} Kg7 {[%emt 0:04:24]} 23. Bxe6 {[%emt 0:00:39]} Kxf6 {[%emt 0:02:19]} 24. Bh3 {[%emt 0:04:18]} Kg7 {[%emt 0:02:06]} 25. Kh1 {[%emt 0:01:28]} Qc5 {[%emt 0:02:08]} 26. Qe2 {[%emt 0:04:07]} Ne7 {[%emt 0:01:29]} 27. f4 {[%emt 0:04:13]} f6 {[%emt 0:03:05]} 28. f5 {[%emt 0:01:16]} Rb8 {[%emt 0:05:06]} 29. b3 {[%emt 0:00:16]} Ra8 {[%emt 0:01:39]} 30. Qd3 {[%emt 0:01:21]} Ra6 {[%emt 0:00:40]} 31. Qe2 {[%emt 0:00:39]} Ra7 {[%emt 0:03:30]} 32. Rd3 {[%emt 0:00:28]} Ra6 {[%emt 0:00:54]} 33. Qg4 {[%emt 0:00:35]} g5 {[%emt 0:00:51]} 34. Qe2 {[%emt 0:00:37]} Rb8 {[%emt 0:01:08]} 35. Bg4 {[%emt 0:00:23]} a4 {[%emt 0:01:57]} 36. Rfd1 {[%emt 0:00:16]} Rbb6 {[%emt 0:01:29]} 37. Bh5 {[%emt 0:00:51]} Qc8 {[%emt 0:01:59]} 38. Qd2 {[%emt 0:00:51]} Qa8 {[%emt 0:01:00]} 39. Qg2 {[%emt 0:00:38]} axb3 {[%emt 0:00:50]} 40. axb3 {[%emt 0:00:00]} Qb8 {[%emt 0:00:00]} 41. Bg4 {[%emt 0:15:49]} Qc7 {[%emt 0:12:04]} 42. Qf3 {[%emt 0:06:57]} 1/2-1/2

[Event "POL-chT 2 Liga 2019"]
[Site "Poronin"]
[Date "2019.09.09"]
[Round "3.40"]
[White "Szmyd, Marek"]
[Black "Bielczyk, Jacek"]
[Result "0-1"]
[ECO "B51"]
[WhiteElo "1885"]
[BlackElo "2279"]
[Annotator "RC"]
[PlyCount "82"]
[EventDate "2019.09.07"]
[EventType "team-tourn"]
[EventCountry "POL"]
[SourceTitle "playchess.com"]
[Source "ChessBase"]
[SourceQuality "1"]
[TimeControl "40/5400+30:1800+30"]

1. e4 {[%emt 0:00:00]} c5 {[%emt 0:00:00]} 2. Nf3 {[%emt 0:00:00]} d6 {[%emt 0:01:37]} 3. Bb5+ {[%emt 0:00:31]} Nd7 {[%emt 0:00:20]} 4. d4 {[%emt 0:02:52]} cxd4 {[%emt 0:03:20]} 5. Qxd4 {[%emt 0:02:53]} Ngf6 {[%emt 0:01:13]} 6. Nc3 {[%emt 0:08:59]} a6 {[%emt 0:11:22]} 7. Ba4 {[%emt 0:00:35]} e6 {[%emt 0:03:02]} 8. Bg5 {[%emt 0:06:47]} Be7 {[%emt 0:07:29]} 9. O-O {[%emt 0:00:42]} O-O {[%emt 0:02:50]} 10. Bxd7 {[%emt 0:01:55]} Qxd7 {[%emt 0:06:02]} 11. e5 {[%emt 0:00:27]} dxe5 {[%emt 0:00:08]} 12. Qxd7 {[%emt 0:01:29]} Bxd7 {[%emt 0:00:06]} 13. Nxe5 {[%emt 0:00:07]} Rfd8 {[%emt 0:00:47]} 14. Nxd7 {[%emt 0:12:44]} Rxd7 {[%emt 0:01:02]} 15. Rfd1 {[%emt 0:00:35]} Rc7 {[%emt 0:05:32]} 16. Bf4 {[%emt 0:38:07]} Rc6 {[%emt 0:02:30]} 17. Be5 {[%emt 0:00:11]} b5 {[%emt 0:02:21]} 18. a3 {[%emt 0:02:09]} Rac8 {[%emt 0:06:34]} 19. h3 {[%emt 0:01:45]} h6 {[%emt 0:01:37]} 20. Rd2 {[%emt 0:02:53]} a5 {[%emt 0:02:57]} 21. Nxb5 {[%emt 0:01:58]} Rxc2 {[%emt 0:00:01]} 22. Rxc2 {[%emt 0:04:16]} Rxc2 {[%emt 0:00:03]} 23. Nd4 {[%emt 0:01:20]} Rc5 {[%emt 0:05:02]} 24. Nf3 {[%emt 0:03:06]} Nd5 {[%emt 0:00:09]} 25. b4 {[%emt 0:00:56]} axb4 {[%emt 0:03:43]} 26. axb4 {[%emt 0:00:02]} Nxb4 {[%emt 0:00:26]} 27. Ra8+ {[%emt 0:00:13]} Kh7 {[%emt 0:00:03]} 28. Bd4 {[%emt 0:02:51]} Rc4 {[%emt 0:05:40]} 29. g3 {[%emt 0:00:57]} Nd5 {[%emt 0:02:46]} 30. Ra7 {[%emt 0:00:25]} f6 {[%emt 0:03:14]} 31. Rd7 {[%emt 0:00:51]} Kg6 {[%emt 0:01:38]} 32. Kg2 {[%emt 0:00:10]} Kf7 {[%emt 0:00:06]} 33. Ba7 {[%emt 0:01:16]} Rc6 {[%emt 0:08:14]} 34. Rb7 {[%emt 0:00:44]} e5 {[%emt 0:00:39]} 35. g4 {[%emt 0:00:26]} Rc3 {[%emt 0:01:28]} 36. Ng1 {[%emt 0:01:42]} Rc2 {[%emt 0:04:27]} 37. Kg3 {[%emt 0:00:44]} Ke6 {[%emt 0:00:17]} 38. Rb3 {[%emt 0:00:32]} Bd6 {[%emt 0:02:45]} 39. f3 {[%emt 0:00:48]} g5 {[%emt 0:00:00]} 40. Bb8 {[%emt 0:00:00]} Nf4 {[%emt 0:00:00]} 41. Ra3 Ra2 0-1

[Event "POL-chT 2 Liga 2019"]
[Site "Poronin"]
[Date "2019.09.09"]
[Round "3.41"]
[White "Sadzikowski, Marian"]
[Black "Zminda, Bogdan"]
[Result "1/2-1/2"]
[ECO "B21"]
[WhiteElo "1808"]
[BlackElo "1970"]
[Annotator "NA RC"]
[PlyCount "94"]
[EventDate "2019.09.07"]
[EventType "team-tourn"]
[EventCountry "POL"]
[SourceTitle "playchess.com"]
[Source "ChessBase"]
[SourceQuality "1"]
[TimeControl "40/5400+30:1800+30"]

1. e4 {[%emt 0:00:01]} c5 {[%emt 0:00:00]} 2. f4 {[%emt 0:00:30]} d5 {[%emt 0:00:13]} 3. Bb5+ {[%emt 0:00:10]} Bd7 {[%emt 0:00:32]} 4. Bxd7+ {[%emt 0:00:10]} Qxd7 {[%emt 0:00:09]} 5. e5 {[%emt 0:00:05]} Nc6 {[%emt 0:00:33]} 6. Nf3 {[%emt 0:00:11]} d4 {[%emt 0:02:23]} 7. d3 {[%emt 0:00:32]} Nh6 {[%emt 0:01:52]} 8. Nbd2 {[%emt 0:00:38]} Nf5 {[%emt 0:00:26]} 9. Ne4 {[%emt 0:00:12]} e6 {[%emt 0:01:45]} 10. O-O {[%emt 0:00:12]} h5 {[%emt 0:02:00]} 11. Ng3 {[%emt 0:04:25]} Nce7 {[%emt 0:09:29]} 12. Qe1 {[%emt 0:00:55]} h4 {[%emt 0:05:12]} 13. Nxf5 {[%emt 0:02:34]} Nxf5 {[%emt 0:00:05]} 14. Ng5 {[%emt 0:00:41]} Be7 {[%emt 0:00:46]} 15. Ne4 {[%emt 0:00:23]} O-O-O {[%emt 0:06:55]} 16. Qa5 {[%emt 0:04:02]} b6 {[%emt 0:00:30]} 17. Qa6+ {[%emt 0:00:14]} Qb7 {[%emt 0:02:36]} 18. Qxb7+ {[%emt 0:04:47]} Kxb7 {[%emt 0:00:02]} 19. a4 {[%emt 0:00:29]} a6 {[%emt 0:01:16]} 20. b3 {[%emt 0:00:48]} b5 {[%emt 0:01:17]} 21. axb5 {[%emt 0:01:59]} axb5 {[%emt 0:04:35]} 22. Bd2 {[%emt 0:02:09]} Ra8 {[%emt 0:01:25]} 23. Kf2 {[%emt 0:01:40]} Kc6 {[%emt 0:12:19]} 24. Kf3 {[%emt 0:04:02]} Kd5 {[%emt 0:03:03]} 25. g4 {[%emt 0:10:42]} hxg3 {[%emt 0:00:46]} 26. hxg3 {[%emt 0:00:44]} f6 {[%emt 0:08:04]} 27. exf6 {[%emt 0:05:12]} gxf6 {[%emt 0:00:01]} 28. g4 {[%emt 0:00:38]} Nh4+ {[%emt 0:01:40]} 29. Kg3 {[%emt 0:00:53]} Rxa1 {[%emt 0:05:50]} 30. Rxa1 {[%emt 0:00:53]} f5 {[%emt 0:00:04]} 31. c4+ {[%emt 0:03:09]} dxc3 {[%emt 0:02:59]} 32. Nxc3+ {[%emt 0:05:58]} Kd4 {[%emt 0:00:37]} 33. Ra7 {[%emt 0:10:07]} Kxd3 {[%emt 0:00:26]} 34. Rxe7 {[%emt 0:00:53]} Kxd2 {[%emt 0:00:14]} 35. Nxb5 {[%emt 0:00:18]} fxg4 {[%emt 0:01:29]} 36. Rxe6 {[%emt 0:01:21]} Nf5+ {[%emt 0:00:16]} 37. Kxg4 {[%emt 0:00:49]} Ne3+ {[%emt 0:00:15]} 38. Kg5 {[%emt 0:06:45]} Rg8+ {[%emt 0:03:15]} 39. Kf6 {[%emt 0:04:24]} Rb8 {[%emt 0:02:38]} 40. Rd6+ {[%emt 0:02:26]} Ke2 {[%emt 0:02:33]} 41. Nc3+ {[%emt 0:34:31]} Kf3 {[%emt 0:00:20]} 42. Na4 {[%emt 0:00:00]} c4 {[%emt 0:05:18]} 43. bxc4 {[%emt 0:00:00]} Nxc4 {[%emt 0:00:02]} 44. Rd4 {[%emt 0:00:00]} Rf8+ {[%emt 0:00:13]} 45. Kg5 {[%emt 0:00:00]} Ne3 {[%emt 0:00:11]} 46. Nb2 {[%emt 0:00:00]} Rf5+ {[%emt 0:00:16]} 47. Kg6 {[%emt 0:00:00]} Rxf4 {[%emt 0:00:07]} 1/2-1/2

[Event "POL-chT 2 Liga 2019"]
[Site "Poronin"]
[Date "2019.09.09"]
[Round "3.42"]
[White "Czaplewska, Klara"]
[Black "Murawko, Katarzyna"]
[Result "1/2-1/2"]
[ECO "A43"]
[WhiteElo "1870"]
[BlackElo "2062"]
[Annotator "NA RC"]
[PlyCount "53"]
[EventDate "2019.09.07"]
[EventType "team-tourn"]
[EventCountry "POL"]
[SourceTitle "playchess.com"]
[Source "ChessBase"]
[SourceQuality "1"]
[TimeControl "40/5400+30:1800+30"]

1. d4 {[%emt 0:00:00]} c5 {[%emt 0:00:00]} 2. d5 {[%emt 0:00:00]} d6 {[%emt 0:00:00]} 3. c4 {[%emt 0:00:00]} g6 {[%emt 0:00:00]} 4. e4 {[%emt 0:00:12]} Bg7 {[%emt 0:00:00]} 5. Nc3 {[%emt 0:00:32]} Nf6 {[%emt 0:02:21]} 6. h3 {[%emt 0:00:14]} O-O {[%emt 0:00:24]} 7. Nf3 {[%emt 0:00:05]} a6 {[%emt 0:01:19]} 8. Bd3 {[%emt 0:00:57]} Nbd7 {[%emt 0:01:22]} 9. O-O {[%emt 0:03:36]} e5 {[%emt 0:01:05]} 10. Be3 {[%emt 0:08:57]} h6 {[%emt 0:04:46]} 11. Qd2 {[%emt 0:01:05]} Kh7 {[%emt 0:00:14]} 12. Nh2 {[%emt 0:00:17]} Ng8 {[%emt 0:05:42]} 13. f4 {[%emt 0:02:22]} exf4 {[%emt 0:00:13]} 14. Bxf4 {[%emt 0:00:53]} Ne5 {[%emt 0:00:12]} 15. Be2 {[%emt 0:03:56]} g5 {[%emt 0:07:26]} 16. Bg3 {[%emt 0:01:15]} Ne7 {[%emt 0:07:13]} 17. Nf3 {[%emt 0:10:47]} N7g6 {[%emt 0:13:21]} 18. Nd1 {[%emt 0:07:13]} f5 {[%emt 0:07:15]} 19. exf5 {[%emt 0:00:30]} Bxf5 {[%emt 0:00:41]} 20. Ne3 {[%emt 0:01:19]} Be4 {[%emt 0:14:57]} 21. Nxe5 {[%emt 0:03:10]} Bxe5 {[%emt 0:03:10]} 22. Bxe5 {[%emt 0:02:54]} Nxe5 {[%emt 0:00:21]} 23. Ng4 {[%emt 0:03:16]} Nxg4 {[%emt 0:06:28]} 24. Bxg4 {[%emt 0:00:03]} Bg6 {[%emt 0:00:11]} 25. Rxf8 {[%emt 0:05:00]} Qxf8 {[%emt 0:00:06]} 26. Rf1 {[%emt 0:00:12]} Qg7 {[%emt 0:00:58]} 27. Kh1 {[%emt 0:03:02]} 1/2-1/2

[Event "POL-chT 2 Liga 2019"]
[Site "Poronin"]
[Date "2019.09.09"]
[Round "3.54"]
[White "Kasperek, Joanna"]
[Black "Bednarska-Bzdega, Malgorzata"]
[Result "1-0"]
[ECO "B22"]
[WhiteElo "2045"]
[BlackElo "1991"]
[Annotator "NA RC"]
[PlyCount "89"]
[EventDate "2019.09.07"]
[EventType "team-tourn"]
[EventCountry "POL"]
[SourceTitle "playchess.com"]
[Source "ChessBase"]
[SourceQuality "1"]
[TimeControl "40/5400+30:1800+30"]

1. e4 {[%emt 0:00:00]} c5 {[%emt 0:00:00]} 2. c3 {[%emt 0:00:12]} g6 {[%emt 0:00:52]} 3. d4 {[%emt 0:00:46]} cxd4 {[%emt 0:00:34]} 4. cxd4 {[%emt 0:00:09]} d5 {[%emt 0:00:08]} 5. exd5 {[%emt 0:02:03]} Nf6 {[%emt 0:01:15]} 6. Nc3 {[%emt 0:00:45]} Bg7 {[%emt 0:00:34]} 7. Bb5+ {[%emt 0:00:56]} Nbd7 {[%emt 0:04:59]} 8. d6 {[%emt 0:00:38]} e6 {[%emt 0:05:46]} 9. Nf3 {[%emt 0:43:12]} O-O {[%emt 0:00:20]} 10. O-O {[%emt 0:01:57]} Nb6 {[%emt 0:07:35]} 11. Bf4 {[%emt 0:03:46]} Nfd5 {[%emt 0:15:40]} 12. Be5 {[%emt 0:04:30]} a6 {[%emt 0:19:38]} 13. Bd3 {[%emt 0:01:09]} Bd7 {[%emt 0:00:22]} 14. a3 {[%emt 0:12:54]} Bc6 {[%emt 0:03:21]} 15. Ne4 {[%emt 0:01:33]} Re8 {[%emt 0:08:18]} 16. h4 {[%emt 0:02:00]} f6 {[%emt 0:06:32]} 17. Bh2 {[%emt 0:00:43]} Bf8 {[%emt 0:00:15]} 18. h5 {[%emt 0:01:51]} g5 {[%emt 0:01:56]} 19. Re1 {[%emt 0:04:49]} Nc8 {[%emt 0:11:03]} 20. Nc5 {[%emt 0:01:21]} Bxd6 {[%emt 0:03:49]} 21. Nxe6 {[%emt 0:00:14]} Bxh2+ {[%emt 0:00:07]} 22. Nxh2 {[%emt 0:00:04]} Qe7 {[%emt 0:02:19]} 23. Nc5 {[%emt 0:06:26]} Qf7 {[%emt 0:00:13]} 24. Rxe8+ {[%emt 0:01:26]} Qxe8 {[%emt 0:00:09]} 25. h6 {[%emt 0:00:32]} Nd6 {[%emt 0:00:28]} 26. Ng4 {[%emt 0:01:07]} Qf8 {[%emt 0:00:39]} 27. Ne4 {[%emt 0:04:16]} Nxe4 {[%emt 0:00:50]} 28. Bxe4 {[%emt 0:00:05]} f5 {[%emt 0:00:14]} 29. Bxd5+ {[%emt 0:00:21]} Bxd5 {[%emt 0:00:04]} 30. Qd2 {[%emt 0:01:55]} Qd8 {[%emt 0:01:35]} 31. Ne3 {[%emt 0:00:40]} f4 {[%emt 0:00:55]} 32. Nxd5 {[%emt 0:01:41]} Qxd5 {[%emt 0:00:05]} 33. Re1 {[%emt 0:00:21]} Qd6 {[%emt 0:00:15]} 34. Qd3 {[%emt 0:01:21]} Qxh6 {[%emt 0:02:22]} 35. Qb3+ {[%emt 0:00:14]} Kh8 {[%emt 0:00:15]} 36. Qxb7 {[%emt 0:00:05]} Rd8 {[%emt 0:00:46]} 37. Qe7 {[%emt 0:01:01]} Rc8 {[%emt 0:03:07]} 38. d5 {[%emt 0:00:37]} g4 {[%emt 0:00:19]} 39. d6 {[%emt 0:00:34]} g3 {[%emt 0:00:04]} 40. fxg3 {[%emt 0:00:00]} fxg3 {[%emt 0:00:00]} 41. Qe5+ {[%emt 0:04:20]} Kg8 {[%emt 0:06:25]} 42. Qxg3+ {[%emt 0:00:11]} Kh8 {[%emt 0:00:06]} 43. Qe5+ {[%emt 0:08:46]} Kg8 {[%emt 0:00:10]} 44. d7 {[%emt 0:00:28]} Rf8 {[%emt 0:00:58]} 45. Qd5+ {[%emt 0:00:47]} 1-0

[Event "POL-chT 2 Liga 2019"]
[Site "Poronin"]
[Date "2019.09.10"]
[Round "4.1"]
[White "Pakleza, Zbigniew"]
[Black "Oglaza, Oskar"]
[Result "1-0"]
[ECO "A05"]
[WhiteElo "2491"]
[BlackElo "2351"]
[Annotator "ChessBase"]
[PlyCount "57"]
[EventDate "2019.09.07"]
[EventType "team-tourn"]
[EventCountry "POL"]
[SourceTitle "playchess.com"]
[Source "ChessBase"]
[SourceQuality "1"]
[TimeControl "40/5400+30:1800+30"]

1. Nf3 {[%emt 0:00:00]} Nf6 {[%emt 0:00:00]} 2. c4 {[%emt 0:00:00]} c6 {[%emt 0:00:00]} 3. Nc3 {[%emt 0:02:19]} d5 {[%emt 0:00:01]} 4. e3 {[%emt 0:01:19]} e6 {[%emt 0:00:11]} 5. b3 {[%emt 0:00:48]} Nbd7 {[%emt 0:01:46]} 6. Bb2 {[%emt 0:01:15]} Be7 {[%emt 0:03:08]} 7. d4 {[%emt 0:01:32]} b6 {[%emt 0:00:24]} 8. Bd3 {[%emt 0:01:40]} Bb7 {[%emt 0:00:22]} 9. O-O {[%emt 0:00:05]} O-O {[%emt 0:06:29]} 10. Qe2 {[%emt 0:03:59]} Qc7 {[%emt 0:11:30]} 11. Rac1 {[%emt 0:08:35]} Rad8 {[%emt 0:04:08]} 12. h3 {[%emt 0:02:40]} Rfe8 {[%emt 0:17:37]} 13. Rfd1 {[%emt 0:08:05]} Qb8 {[%emt 0:11:17]} 14. a3 {[%emt 0:04:40]} c5 {[%emt 0:07:09]} 15. cxd5 {[%emt 0:02:26]} Nxd5 {[%emt 0:00:08]} 16. Bb5 {[%emt 0:11:33]} Rf8 {[%emt 0:11:35]} 17. Nxd5 {[%emt 0:21:40]} exd5 {[%emt 0:06:06]} 18. dxc5 {[%emt 0:02:00]} Bxc5 {[%emt 0:06:15]} 19. Nd4 {[%emt 0:04:40]} Ne5 {[%emt 0:03:09]} 20. Nf5 {[%emt 0:02:44]} Bc8 {[%emt 0:02:11]} 21. Qc2 {[%emt 0:09:07]} Be6 {[%emt 0:01:34]} 22. b4 {[%emt 0:01:30]} Bd6 {[%emt 0:00:06]} 23. Nxd6 {[%emt 0:03:40]} Qxd6 {[%emt 0:00:08]} 24. f4 {[%emt 0:00:17]} Ng6 {[%emt 0:03:40]} 25. f5 {[%emt 0:00:21]} Nh4 {[%emt 0:00:01]} 26. fxe6 {[%emt 0:00:15]} fxe6 {[%emt 0:00:38]} 27. Qc7 {[%emt 0:00:42]} Qxc7 {[%emt 0:00:57]} 28. Rxc7 {[%emt 0:00:03]} d4 {[%emt 0:00:05]} 29. Rxd4 {[%emt 0:00:37]} 1-0

[Event "POL-chT 2 Liga 2019"]
[Site "Poronin"]
[Date "2019.09.10"]
[Round "4.2"]
[White "Pacan-Milej, Kosma"]
[Black "Jakubiec, Artur"]
[Result "1/2-1/2"]
[ECO "A41"]
[WhiteElo "2287"]
[BlackElo "2472"]
[Annotator "ChessBase"]
[PlyCount "24"]
[EventDate "2019.09.07"]
[EventType "team-tourn"]
[EventCountry "POL"]
[SourceTitle "playchess.com"]
[Source "ChessBase"]
[SourceQuality "1"]
[TimeControl "40/5400+30:1800+30"]

1. d4 {[%emt 0:00:00]} d6 {[%emt 0:00:17]} 2. e4 {[%emt 0:00:00]} Nf6 {[%emt 0:00:55]} 3. Bd3 {[%emt 0:01:24]} g6 {[%emt 0:01:05]} 4. Nf3 {[%emt 0:00:31]} Bg7 {[%emt 0:00:31]} 5. O-O {[%emt 0:00:11]} O-O {[%emt 0:00:35]} 6. c3 {[%emt 0:00:47]} Nc6 {[%emt 0:02:57]} 7. Nbd2 {[%emt 0:01:03]} Bg4 {[%emt 0:02:22]} 8. h3 {[%emt 0:00:23]} Bxf3 {[%emt 0:00:26]} 9. Nxf3 {[%emt 0:00:10]} e5 {[%emt 0:03:42]} 10. dxe5 {[%emt 0:04:04]} dxe5 {[%emt 0:03:35]} 11. Bc2 {[%emt 0:05:41]} Qe7 {[%emt 0:01:40]} 12. Qe2 {[%emt 0:01:49]} a6 {[%emt 0:10:22]} 1/2-1/2